bitfinex-derivatives/quotes_SOLF0:USTF0_20250924
["timestamp","ask_amount","ask_price","bid_price","bid_amount"]
[1758697515745,4.2683,210.77,210.7,7.35]
[1758697517240,4.2687,210.75,210.7,7.35]
[1758697517445,7.26,210.74,210.68,1.37458506]
[1758697517852,73.6651,210.74,210.68,1.37458506]
[1758697518347,4.2695,210.71,210.69,7.35]
[1758697519054,11.529,210.74,210.69,7.35]
[1758697519250,66.3991,210.76,210.69,7.35]
[1758697519448,7.26,210.75,210.69,7.35]
[1758697520051,7.26,210.75,210.68,1.37458506]
[1758697520454,7.26,210.75,210.66,1.37458506]
[1758697520751,7.26,210.72,210.66,1.37458506]
[1758697522554,4.2694,210.71,210.64,7.35]
[1758697525150,4.2698,210.69,210.64,7.35]
[1758697525356,4.2698,210.69,210.63,117.62]
[1758697525756,4.2698,210.69,210.63,124.97]
[1758697525955,7.68,210.7,210.63,124.97]
[1758697526356,4.2694,210.72,210.63,124.97]
[1758697526552,4.2694,210.72,210.63,117.62]
[1758697526755,4.2694,210.72,210.64,7.35]
[1758697527256,4.2696,210.7,210.64,7.35]
[1758697527652,75.46518506,210.72,210.64,7.35]
[1758697528155,4.27,210.68,210.64,7.35]
[1758697528358,7.68,210.67,210.63,117.62]
[1758697528755,7.68,210.67,210.63,124.97]
[1758697528956,66.4173,210.7,210.64,7.35]
[1758697530557,7.68,210.71,210.64,7.35]
[1758697531260,11.9502,210.68,210.64,7.35]
[1758697531858,11.9504,210.67,210.63,118.99458506]
[1758697532058,11.9504,210.67,210.63,117.62]
[1758697532260,4.2704,210.67,210.64,7.35]
[1758697532757,4.2697,210.7,210.64,7.35]
[1758697533263,4.2699,210.69,210.63,126.34458506]
[1758697534464,4.2699,210.69,210.63,118.99458506]
[1758697534657,4.2699,210.69,210.64,7.35]
[1758697535057,4.2699,210.69,210.63,118.99458506]
[1758697535561,4.2699,210.69,210.64,7.35]
[1758697535759,4.2699,210.69,210.63,118.99458506]
[1758697536062,4.2693,210.72,210.66,1.37458506]
[1758697536356,4.2697,210.7,210.66,1.37458506]
[1758697536664,11.9497,210.7,210.66,1.37458506]
[1758697536862,11.9497,210.7,210.66,8.72458506]
[1758697537062,4.2701,210.67,210.64,7.35]
[1758697537358,7.68,210.7,210.64,7.35]
[1758697538854,4.2697,210.69,210.64,7.35]
[1758697539054,11.9497,210.69,210.64,7.35]
[1758697539262,7.68,210.69,210.64,7.35]
[1758697539761,7.68,210.69,210.63,126.34458506]
[1758697540151,4.2701,210.68,210.63,126.34458506]
[1758697540462,4.2701,210.68,210.63,118.99458506]
[1758697540663,4.2701,210.68,210.64,7.35]
[1758697541057,4.2695,210.7,210.64,7.35]
[1758697544262,4.2699,210.69,210.63,118.99458506]
[1758697544463,4.2699,210.69,210.64,7.35]
[1758697544660,4.2699,210.69,210.63,118.99458506]
[1758697545463,4.2699,210.69,210.64,7.35]
[1758697545764,4.2699,210.69,210.63,118.99458506]
[1758697545968,4.2699,210.69,210.64,7.35]
[1758697546169,4.2699,210.69,210.63,118.99458506]
[1758697546370,4.2699,210.69,210.64,7.35]
[1758697546670,4.2699,210.69,210.63,118.99458506]
[1758697546862,4.2701,210.68,210.64,7.35]
[1758697547461,4.2701,210.68,210.63,118.99458506]
[1758697548267,4.2695,210.7,210.64,7.35]
[1758697548467,7.68,210.73,210.64,7.35]
[1758697548670,1.1867875,210.72,210.64,7.35]
[1758697548869,1.1867875,210.71,210.64,7.35]
[1758697549071,7.68,210.73,210.64,7.35]
[1758697549367,1.18678785,210.72,210.64,7.35]
[1758697549568,4.2702,210.67,210.64,7.35]
[1758697550067,7.68,210.7,210.63,118.99458506]
[1758697550068,4.2698,210.69,210.63,118.99458506]
[1758697550265,4.2698,210.69,210.64,7.35]
[1758697550871,4.2703,210.67,210.64,7.35]
[1758697551366,4.2703,210.67,210.63,117.62]
[1758697552072,4.2703,210.67,210.64,7.35]
[1758697552461,4.2703,210.67,210.63,117.62]
[1758697552669,4.2703,210.67,210.64,7.35]
[1758697553469,4.2703,210.67,210.63,117.62]
[1758697553864,4.2703,210.67,210.64,7.32]
[1758697554669,4.2703,210.67,210.63,117.62]
[1758697555070,7.85,210.73,210.65,1.37458506]
[1758697555275,1.18687732,210.72,210.66,7.32]
[1758697555573,1.18687732,210.71,210.65,5.28118492]
[1758697555773,4.2693,210.72,210.66,7.32]
[1758697555976,1.18677602,210.71,210.66,7.32]
[1758697556172,4.2693,210.72,210.66,7.32]
[1758697556373,4.2693,210.72,210.65,8.69458506]
[1758697556374,1.18677584,210.71,210.65,8.69458506]
[1758697556575,9.03677584,210.7,210.65,1.37458506]
[1758697556776,7.85,210.7,210.66,7.32]
[1758697557167,7.85,210.68,210.63,121.52659986]
[1758697557372,74.2633,210.71,210.64,7.32]
[1758697557676,1.18688073,210.7,210.64,7.32]
[1758697557876,1.18688073,210.69,210.64,7.32]
[1758697558175,74.2633,210.71,210.64,7.32]
[1758697558368,75.62868506,210.74,210.64,11.22659986]
[1758697558570,1.18683733,210.73,210.64,7.32]
[1758697558771,9.03683733,210.72,210.64,7.32]
[1758697558971,1.18683733,210.71,210.64,7.32]
[1758697559178,1.18683733,210.71,210.64,11.22659986]
[1758697559372,4.2697,210.7,210.64,7.32]
[1758697559577,4.2697,210.7,210.64,11.22659986]
[1758697561170,7.85,210.72,210.64,11.22659986]
[1758697561171,66.4128,210.71,210.64,11.22659986]
[1758697561372,9.03683733,210.7,210.64,7.32]
[1758697561676,1.18683733,210.69,210.64,7.32]
[1758697561876,9.03683733,210.68,210.64,7.32]
[1758697562072,1.18683733,210.67,210.64,7.32]
[1758697562276,4.2705,210.66,210.64,7.32]
[1758697564079,4.2708,210.64,210.63,117.62]
[1758697564778,4.2708,210.64,210.6,7.32]
[1758697565371,4.2711,210.63,210.6,7.32]
[1758697566075,4.2711,210.63,210.59,117.54]
[1758697566877,4.2711,210.63,210.6,7.32]
[1758697567272,4.2711,210.63,210.59,117.54]
[1758697567476,4.2711,210.63,210.6,7.32]
[1758697567677,4.2706,210.65,210.59,117.54]
[1758697567879,4.2706,210.65,210.6,7.32]
[1758697568075,4.2706,210.65,210.59,117.54]
[1758697568276,4.2706,210.65,210.6,7.32]
[1758697568582,12.1209,210.64,210.59,117.54]
[1758697568776,4.2709,210.64,210.6,7.32]
[1758697569878,4.2709,210.64,210.59,117.54]
[1758697570183,4.2709,210.64,210.6,7.32]
[1758697570378,4.2709,210.64,210.59,117.54]
[1758697570683,4.2709,210.64,210.6,7.32]
[1758697570882,4.2709,210.64,210.59,117.54]
[1758697571183,4.2709,210.64,210.6,7.32]
[1758697571381,4.2709,210.64,210.59,117.54]
[1758697571584,4.2709,210.64,210.6,7.32]
[1758697571877,4.2709,210.64,210.59,117.54]
[1758697572081,4.2709,210.64,210.6,7.32]
[1758697572382,4.2709,210.64,210.59,117.54]
[1758697573282,4.2712,210.62,210.6,7.32]
[1758697573483,7.85,210.66,210.59,124.86]
[1758697573888,4.2708,210.64,210.59,124.86]
[1758697574088,4.2708,210.64,210.59,117.54]
[1758697574283,4.2708,210.64,210.6,7.32]
[1758697574782,4.2708,210.64,210.6,7.66]
[1758697575282,7.91,210.64,210.6,7.66]
[1758697576092,7.91,210.64,210.59,117.54]
[1758697576093,74.3484,210.63,210.56,7.66]
[1758697576998,7.91,210.61,210.55,117.5]
[1758697577190,7.91,210.61,210.55,125.16]
[1758697577890,4.2718,210.59,210.55,125.16]
[1758697578194,66.4491,210.6,210.55,117.5]
[1758697578492,7.91,210.58,210.52,125.16]
[1758697579583,4.2728,210.55,210.52,125.16]
[1758697580495,4.2731,210.53,210.47,7.66]
[1758697580990,7.91,210.58,210.47,7.66]
[1758697581894,4.2725,210.56,210.47,7.66]
[1758697582794,7.91,210.58,210.47,7.66]
[1758697583794,4.2722,210.57,210.47,7.66]
[1758697585395,4.2726,210.55,210.47,7.66]
[1758697587692,4.273,210.54,210.47,7.66]
[1758697590296,4.2722,210.57,210.47,7.66]
[1758697590594,12.0322,210.57,210.47,7.66]
[1758697591197,4.2726,210.56,210.47,7.66]
[1758697591802,4.2728,210.55,210.47,7.66]
[1758697592000,12.0328,210.55,210.47,7.66]
[1758697597104,4.273,210.54,210.47,7.66]
[1758697598212,66.4772,210.51,210.41,7.5]
[1758697598411,7.76,210.48,210.41,7.5]
[1758697599121,12.0346,210.45,210.37,7.5]
[1758697599322,7.76,210.45,210.37,7.5]
[1758697599614,7.76,210.49,210.37,7.5]
[1758697599818,7.76,210.49,210.38,7.5]
[1758697600519,4.2744,210.46,210.38,7.5]
[1758697601821,12.0344,210.46,210.38,7.5]
[1758697603227,7.76,210.46,210.38,7.5]
[1758697603426,7.76,210.5,210.38,7.5]
[1758697603627,9.90921947,210.5,210.38,7.5]
[1758697603825,12.0344,210.47,210.38,7.5]
[1758697607529,7.76,210.52,210.38,7.5]
[1758697608434,4.2738,210.49,210.39,4.2757]
[1758697608731,4.2738,210.49,210.37,24.98]
[1758697608732,7.76,210.49,210.4,7.5]
[1758697608925,7.76,210.47,210.4,7.5]
[1758697609833,7.76,210.44,210.4,7.5]
[1758697611035,7.76,210.44,210.41,7.5]
[1758697611730,4.2747,210.45,210.37,24.98]
[1758697611930,12.0347,210.45,210.37,32.48]
[1758697612228,7.76,210.43,210.37,7.5]
[1758697612434,7.76,210.43,210.31,7.5]
[1758697612834,4.2758,210.4,210.31,7.5]
[1758697613337,7.76,210.41,210.31,7.5]
[1758697613836,4.2761,210.38,210.31,7.5]
[1758697619235,4.2756,210.41,210.31,7.5]
[1758697620039,74.1134,210.4,210.27,3.90959284]
[1758697620236,74.1134,210.4,210.28,7.81]
[1758697620433,7.6,210.38,210.28,7.81]
[1758697621036,68.64161947,210.46,210.28,7.81]
[1758697621240,7.6,210.43,210.31,7.81]
[1758697622038,7.6,210.43,210.32,7.81]
[1758697622338,132.9684,210.49,210.32,7.81]
[1758697622339,7.6,210.48,210.32,7.81]
[1758697623238,7.6,210.48,210.35,7.81]
[1758697623435,7.6,210.48,210.37,7.81]
[1758697623735,4.2745,210.46,210.38,4.276]
[1758697624038,4.2745,210.46,210.37,7.81]
[1758697624438,7.6,210.48,210.38,7.81]
[1758697625040,4.2743,210.47,210.38,7.81]
[1758697625241,7.6,210.48,210.38,7.81]
[1758697625541,74.0863,210.48,210.38,7.81]
[1758697625937,7.6,210.43,210.33,7.81]
[1758697626638,4.2759,210.39,210.33,7.81]
[1758697627940,4.2764,210.37,210.31,67.68]
[1758697628543,4.2768,210.35,210.31,75.49]
[1758697628733,11.8768,210.35,210.31,75.49]
[1758697628936,11.8768,210.35,210.32,7.81]
[1758697629439,4.2761,210.38,210.32,7.81]
[1758697629637,7.6,210.41,210.32,7.81]
[1758697630246,11.8761,210.38,210.32,7.81]
[1758697630444,7.6,210.38,210.32,7.81]
[1758697632442,7.6,210.42,210.32,7.81]
[1758697632636,8.97876573,210.42,210.32,7.81]
[1758697633646,4.2757,210.4,210.32,7.81]
[1758697633839,8.97876573,210.42,210.32,7.81]
[1758697633840,7.88,210.39,210.32,7.81]
[1758697634745,4.2756,210.41,210.32,7.81]
[1758697635248,4.2756,210.41,210.32,12.0873]
[1758697635641,4.2756,210.41,210.32,4.2773]
[1758697635846,7.88,210.42,210.35,7.38]
[1758697640445,12.1555,210.42,210.35,7.38]
[1758697640646,7.88,210.42,210.35,7.38]
[1758697641749,4.2761,210.39,210.32,8.75876573]
[1758697642845,7.88,210.4,210.32,8.75876573]
[1758697643050,7.88,210.4,210.33,11.30123962]
[1758697643346,7.88,210.4,210.34,3.92123962]
[1758697647845,7.88,210.4,210.33,11.30123962]
[1758697649144,4.2759,210.39,210.33,11.30123962]
[1758697650553,4.2759,210.39,210.33,7.38]
[1758697651054,4.2759,210.39,210.33,11.30123962]
[1758697653256,4.2759,210.39,210.34,3.92123962]
[1758697653459,11.6259,210.39,210.35,7.39]
[1758697654462,7.35,210.43,210.35,7.39]
[1758697654659,7.35,210.43,210.37,7.39]
[1758697655761,11.6251,210.43,210.37,7.39]
[1758697662368,4.2754,210.42,210.37,7.39]
[1758697662864,7.35,210.41,210.37,7.39]
[1758697664062,7.35,210.4,210.36,3.92123962]
[1758697664266,7.35,210.43,210.35,3.92123962]
[1758697664665,1.37876573,210.41,210.35,3.92123962]
[1758697664866,7.35,210.37,210.33,3.92123962]
[1758697665169,1.37876573,210.38,210.32,11.31123962]
[1758697665170,13.00486573,210.38,210.32,11.31123962]
[1758697666268,1.37876573,210.41,210.35,3.92123962]
[1758697666472,7.35,210.4,210.33,3.92123962]
[1758697667768,4.2763,210.37,210.33,3.92123962]
[1758697668070,11.6263,210.37,210.34,7.39]
[1758697668568,7.35,210.36,210.33,3.92123962]
[1758697668867,7.35,210.36,210.33,11.31123962]
[1758697669570,7.35,210.35,210.33,3.92123962]
[1758697669768,7.35,210.38,210.31,3.92123962]
[1758697670065,66.5158,210.39,210.31,3.92123962]
[1758697670066,7.35,210.35,210.31,3.92123962]
[1758697670269,7.35,210.35,210.32,3.92123962]
[1758697670472,7.35,210.35,210.32,11.31123962]
[1758697671372,7.35,210.35,210.32,7.39]
[1758697671771,7.35,210.35,210.32,11.31123962]
[1758697674164,7.84,210.35,210.32,11.31123962]
[1758697674364,7.84,210.35,210.32,3.92123962]
[1758697674768,7.84,210.35,210.31,11.56123962]
[1758697679973,7.84,210.35,210.32,7.64]
[1758697680180,7.84,210.33,210.3,3.92123962]
[1758697680677,7.84,210.33,210.3,11.56123962]
[1758697681381,4.2769,210.34,210.3,3.92123962]
[1758697681578,4.2769,210.34,210.31,7.64]
[1758697681780,12.1169,210.34,210.31,7.64]
[1758697681978,4.2773,210.32,210.3,3.92123962]
[1758697682181,7.84,210.31,210.29,3.92123962]
[1758697682475,7.84,210.31,210.28,3.92123962]
[1758697682676,7.84,210.31,210.28,11.56123962]
[1758697685383,7.84,210.31,210.28,7.64]
[1758697685779,7.84,210.31,210.27,3.92123962]
[1758697685780,4.2777,210.31,210.27,3.92123962]
[1758697686077,67.90686573,210.35,210.27,3.92123962]
[1758697686078,7.84,210.3,210.27,3.92123962]
[1758697686283,7.84,210.3,210.26,3.92123962]
[1758697686482,7.84,210.3,210.26,11.56123962]
[1758697686685,7.84,210.3,210.27,7.64]
[1758697687081,7.84,210.29,210.26,3.92123962]
[1758697688384,7.84,210.29,210.26,7.64]
[1758697688787,12.1181,210.29,210.26,7.64]
[1758697688981,12.1181,210.29,210.25,69.32123962]
[1758697689188,7.84,210.28,210.25,69.32123962]
[1758697689489,7.84,210.28,210.25,76.96123962]
[1758697689682,4.2783,210.28,210.23,3.92123962]
[1758697689888,7.84,210.3,210.22,3.92123962]
[1758697690485,7.84,210.3,210.21,11.56123962]
[1758697690880,7.84,210.3,210.21,3.92123962]
[1758697691085,1.37876573,210.32,210.25,7.64]
[1758697691687,9.21876573,210.33,210.25,7.64]
[1758697691888,4.2776,210.31,210.25,7.64]
[1758697692087,9.21876573,210.33,210.25,11.56123962]
[1758697692490,13.49596573,210.33,210.26,7.64]
[1758697693089,7.84,210.33,210.26,7.64]
[1758697693391,7.84,210.33,210.27,11.56123962]
[1758697694290,12.1173,210.33,210.27,11.56123962]
[1758697694494,7.84,210.33,210.25,64.26123962]
[1758697694694,7.84,210.33,210.25,71.70123962]
[1758697694883,7.84,210.33,210.25,67.78]
[1758697695491,66.5351,210.33,210.25,60.34]
[1758697695791,66.5413,210.31,210.25,60.34]
[1758697695998,11.9785,210.27,210.25,60.34]
[1758697696399,7.7,210.26,210.25,60.34]
[1758697697799,7.7,210.26,210.22,11.36123962]
[1758697697800,7.7,210.26,210.23,7.44]
[1758697699204,7.7,210.26,210.2,350.00123962]
[1758697699205,4.2787,210.26,210.2,350.00123962]
[1758697699405,4.2787,210.26,210.2,357.44123962]
[1758697699904,7.7,210.27,210.2,357.44123962]
[1758697700104,7.7,210.27,210.21,3.92123962]
[1758697700603,7.7,210.29,210.22,7.44]
[1758697701305,7.7,210.26,210.2,3.92123962]
[1758697701502,7.7,210.26,210.21,7.44]
[1758697701706,7.7,210.26,210.2,3.92123962]
[1758697702500,7.7,210.26,210.21,7.44]
[1758697702701,7.7,210.26,210.2,3.92123962]
[1758697702904,7.7,210.26,210.21,7.44]
[1758697703206,7.7,210.26,210.2,3.92123962]
[1758697703594,7.7,210.26,210.21,7.58]
[1758697703798,7.7,210.26,210.2,3.92123962]
[1758697704000,7.7,210.26,210.21,7.58]
[1758697704205,7.7,210.26,210.2,3.92123962]
[1758697704607,7.7,210.26,210.21,7.58]
[1758697704801,7.7,210.26,210.2,3.92123962]
[1758697705307,7.66,210.3,210.23,7.58]
[1758697705605,7.66,210.3,210.24,7.58]
[1758697707805,4.2782,210.28,210.23,7.58]
[1758697708101,4.2782,210.28,210.22,3.92123962]
[1758697708802,11.9377,210.3,210.23,7.58]
[1758697709007,11.9377,210.3,210.23,11.50123962]
[1758697709509,4.2773,210.32,210.25,7.58]
[1758697709710,4.2773,210.32,210.25,11.50123962]
[1758697711106,4.2773,210.32,210.26,7.58]
[1758697712913,4.2773,210.32,210.26,11.50123962]
[1758697714104,7.66,210.34,210.27,7.58]
[1758697714310,7.66,210.34,210.27,11.50123962]
[1758697715210,7.66,210.34,210.28,3.92123962]
[1758697715508,11.9371,210.34,210.27,11.50123962]
[1758697716309,7.66,210.33,210.27,11.50123962]
[1758697716514,7.66,210.33,210.27,7.58]
[1758697717209,4.2778,210.3,210.27,7.58]
[1758697717409,11.9378,210.3,210.27,7.58]
[1758697718712,11.9374,210.32,210.27,7.58]
[1758697718912,11.9374,210.32,210.27,3.92123962]
[1758697719408,11.9374,210.32,210.28,7.58]
[1758697720006,4.2777,210.31,210.28,7.58]
[1758697720702,11.9377,210.31,210.28,7.58]
[1758697721413,11.9379,210.3,210.27,7.58]
[1758697722014,66.5284,210.35,210.25,3.92123962]
[1758697722015,4.2781,210.28,210.25,3.92123962]
[1758697722215,7.66,210.27,210.25,3.92123962]
[1758697723209,11.9385,210.27,210.25,3.92123962]
[1758697730424,7.66,210.32,210.26,7.58]
[1758697730622,7.66,210.31,210.27,11.52385735]
[1758697731326,7.66,210.31,210.28,3.94385735]
[1758697731828,11.9377,210.31,210.28,3.94385735]
[1758697732222,7.66,210.31,210.28,3.94385735]
[1758697732431,7.66,210.31,210.28,11.52385735]
[1758697732923,4.2771,210.33,210.29,11.52385735]
[1758697733120,11.9371,210.33,210.29,11.52385735]
[1758697733319,66.5277,210.35,210.28,3.94385735]
[1758697733521,11.9377,210.31,210.27,11.35385735]
[1758697734424,66.5277,210.35,210.27,11.35385735]
[1758697734425,4.2772,210.33,210.28,7.41]
[1758697734623,7.95,210.34,210.27,3.94385735]
[1758697735831,4.2777,210.3,210.27,11.35385735]
[1758697736230,12.2277,210.3,210.27,11.35385735]
[1758697736625,4.2781,210.29,210.27,11.35385735]
[1758697737227,12.2281,210.29,210.27,11.35385735]
[1758697738131,12.2281,210.29,210.27,3.94385735]
[1758697741840,4.2781,210.29,210.27,11.35385735]
[1758697742937,7.95,210.34,210.27,11.35385735]
[1758697743344,66.5283,210.35,210.27,11.35385735]
[1758697743548,4.2779,210.3,210.27,11.35385735]
[1758697743744,12.2279,210.3,210.27,11.35385735]
[1758697744247,7.95,210.29,210.28,3.94385735]
[1758697745149,4.2779,210.3,210.28,3.94385735]
[1758697745452,7.95,210.29,210.28,3.94385735]
[1758697747548,7.95,210.28,210.27,3.94385735]
[1758697748551,7.95,210.28,210.26,3.94385735]
[1758697748752,7.95,210.28,210.26,11.35385735]
[1758697748953,7.95,210.3,210.27,11.35385735]
[1758697750251,4.2776,210.31,210.27,11.35385735]
[1758697750656,7.95,210.3,210.27,11.35385735]
[1758697751055,4.2776,210.31,210.27,11.35385735]
[1758697751250,7.95,210.3,210.27,11.35385735]
[1758697751652,7.95,210.29,210.27,11.35385735]
[1758697757956,7.95,210.29,210.27,3.94385735]
[1758697758653,4.2779,210.3,210.27,3.94385735]
[1758697758857,7.44,210.29,210.27,3.94385735]
[1758697759053,4.277,210.34,210.27,3.94385735]
[1758697759257,1.18888817,210.33,210.28,3.94385735]
[1758697759458,67.90799908,210.35,210.28,3.94385735]
[1758697759654,8.62887821,210.34,210.28,3.94385735]
[1758697759851,4.2779,210.3,210.27,3.94385735]
[1758697760057,7.44,210.29,210.27,3.94385735]
[1758697760256,4.2779,210.3,210.28,7.63]
[1758697761559,11.7179,210.3,210.28,7.63]
[1758697761762,11.7179,210.3,210.27,11.57385735]
[1758697762156,4.2779,210.3,210.27,11.57385735]
[1758697762360,7.44,210.29,210.27,11.57385735]
[1758697763856,4.2779,210.3,210.27,11.57385735]
[1758697764064,4.2779,210.3,210.28,3.94385735]
[1758697764263,11.8179,210.3,210.28,11.47385735]
[1758697764455,4.2779,210.3,210.28,11.47385735]
[1758697764662,7.54,210.38,210.3,7.53]
[1758697764860,7.54,210.36,210.32,3.94739376]
[1758697765059,15.5480149,210.39,210.33,7.53]
[1758697765253,4.2767,210.36,210.32,3.94739376]
[1758697765463,7.54,210.4,210.33,7.53]
[1758697765663,1.18862511,210.39,210.33,7.53]
[1758697765965,8.91999908,210.4,210.33,7.53]
[1758697766157,7.54,210.45,210.35,1.37999908]
[1758697766356,7.54,210.49,210.42,7.53]
[1758697767361,66.4864,210.48,210.42,7.53]
[1758697767765,7.54,210.47,210.42,7.53]
[1758697767963,66.4864,210.48,210.42,7.53]
[1758697768364,7.54,210.47,210.42,7.53]
[1758697768763,11.8145,210.46,210.42,7.53]
[1758697769067,4.2745,210.46,210.4,7.53]
[1758697773063,66.4934,210.46,210.37,7.53]
[1758697773263,7.54,210.49,210.38,1.37999908]
[1758697773464,8.91999908,210.49,210.39,7.53]
[1758697774770,4.2743,210.47,210.39,7.53]
[1758697775867,66.5028,210.43,210.35,7.53]
[1758697776072,7.54,210.42,210.35,7.53]
[1758697776772,4.2759,210.39,210.31,41.89999908]
[1758697776974,4.2759,210.39,210.32,7.53]
[1758697780066,4.2759,210.39,210.29,350.16739376]
[1758697780067,4.2763,210.37,210.29,5.32739284]
[1758697780266,74.058,210.38,210.3,68.17]
[1758697781069,4.2767,210.35,210.3,60.64]
[1758697781574,11.8162,210.38,210.31,7.53]
[1758697783862,4.2762,210.38,210.31,7.53]
[1758697784067,11.8156,210.41,210.31,7.53]
[1758697784270,7.54,210.41,210.31,7.53]
[1758697785872,4.2759,210.39,210.31,7.53]
[1758697786876,7.54,210.41,210.31,4.2775]
[1758697787080,7.54,210.41,210.32,7.53]
[1758697788781,4.2757,210.4,210.32,7.53]
[1758697789679,1.37999908,210.39,210.32,7.53]
[1758697790679,7.54,210.38,210.32,7.53]
[1758697791270,7.54,210.38,210.31,7.53]
[1758697792679,11.8162,210.38,210.31,7.53]
[1758697795685,1.37999908,210.39,210.31,7.53]
[1758697796780,1.37999908,210.39,210.31,4.2774]
[1758697796989,5.65569908,210.4,210.32,7.72]
[1758697801791,1.37999908,210.4,210.32,7.72]
[1758697801993,7.98,210.38,210.32,7.72]
[1758697802583,7.98,210.39,210.32,7.72]
[1758697802986,1.37999908,210.37,210.3,3.94739376]
[1758697803186,7.98,210.36,210.3,3.94739376]
[1758697803990,7.98,210.36,210.31,7.72]
[1758697804188,7.98,210.36,210.3,3.94739376]
[1758697804394,7.98,210.36,210.31,7.72]
[1758697804593,7.98,210.36,210.3,3.94739376]
[1758697804993,7.98,210.36,210.31,7.72]
[1758697805187,7.98,210.36,210.3,11.66739376]
[1758697805393,7.98,210.36,210.32,7.72]
[1758697805896,7.98,210.36,210.3,7.72]
[1758697806894,12.2567,210.36,210.3,7.72]
[1758697807393,7.98,210.35,210.3,3.94739376]
[1758697807697,7.98,210.33,210.28,40.28]
[1758697807895,9.35999908,210.38,210.29,11.66739376]
[1758697808295,9.35999908,210.38,210.3,3.94739376]
[1758697808490,7.98,210.34,210.29,3.94739376]
[1758697808696,7.98,210.34,210.28,48.0]
[1758697809594,7.98,210.34,210.28,51.94739376]
[1758697810495,1.37999908,210.32,210.26,3.94739376]
[1758697810694,7.98,210.31,210.24,3.94739376]
[1758697811598,1.37999908,210.29,210.23,3.94739376]
[1758697812102,4.2782,210.28,210.23,3.94739376]
[1758697812303,7.98,210.27,210.23,3.94739376]
[1758697812598,7.98,210.3,210.23,11.66739376]
[1758697813402,7.98,210.3,210.24,3.94739376]
[1758697815498,7.98,210.3,210.23,7.72]
[1758697823205,7.81,210.33,210.25,7.58]
[1758697823615,12.0874,210.33,210.25,7.58]
[1758697827815,7.81,210.33,210.25,11.8588]
[1758697828712,7.81,210.33,210.27,7.94]
[1758697829513,12.0872,210.33,210.27,7.94]
[1758697831912,7.81,210.33,210.27,7.94]
[1758697846131,12.0873,210.33,210.27,7.94]
[1758697846430,7.73,210.35,210.24,3.94286621]
[1758697846629,1.1890118,210.34,210.23,11.88286621]
[1758697846931,7.73,210.32,210.23,11.88286621]
[1758697847131,66.5268,210.36,210.23,11.88286621]
[1758697847332,1.18902142,210.35,210.23,11.88286621]
[1758697847623,1.18902142,210.34,210.23,11.88286621]
[1758697847826,4.2778,210.31,210.23,11.88286621]
[1758697848332,7.73,210.28,210.24,11.88286621]
[1758697848531,4.278,210.29,210.24,7.94]
[1758697848731,7.73,210.28,210.24,7.94]
[1758697849727,4.278,210.29,210.24,7.94]
[1758697850229,7.73,210.28,210.23,3.94286621]
[1758697850434,7.73,210.37,210.24,11.88286621]
[1758697850734,7.73,210.35,210.27,7.94]